[Event "Vienna Championship-C 2022"]
[Site "Vienna"]
[Date "2022.09.19"]
[Round "3.14"]
[White "Gaspar, Zdravko"]
[Black "Niesswohl, Werner"]
[Result "1-0"]
[ECO "A47"]
[WhiteElo "1538"]
[BlackElo "1473"]
[Annotator "NA COMBH"]
[PlyCount "55"]
[EventDate "2022.09.17"]
[EventType "swiss"]
[EventCountry "AUT"]
[SourceTitle "playchess.com"]
[Source "ChessBase"]
[SourceQuality "1"]
[TimeControl "5400+30"]

1. d4 {[%emt 0:00:05]} Nf6 {[%emt 0:01:04]} 2. Nf3 {[%emt 0:01:56]} e6 {[%emt 0:00:29]} 3. e3 {[%emt 0:01:02]} c5 {[%emt 0:00:43]} 4. Nbd2 {[%emt 0:02:58]} Nc6 {[%emt 0:01:44]} 5. c3 {[%emt 0:02:49]} b6 {[%emt 0:01:31]} 6. Bd3 {[%emt 0:00:17]} Bb7 {[%emt 0:01:35]} 7. O-O {[%emt 0:01:27]} Be7 {[%emt 0:00:00]} 8. Qe2 {[%emt 0:03:40]} d5 {[%emt 0:02:20]} 9. Rd1 {[%emt 0:03:10]} Qc7 {[%emt 0:02:14]} 10. b3 {[%emt 0:00:51]} Bd6 {[%emt 0:03:21]} 11. Bb2 {[%emt 0:05:20]} e5 {[%emt 0:01:33]} 12. dxe5 {[%emt 0:02:00]} Nxe5 {[%emt 0:00:33]} 13. Nxe5 {[%emt 0:02:17]} Bxe5 {[%emt 0:00:26]} 14. Nf3 {[%emt 0:00:25]} Bd6 {[%emt 0:02:26]} 15. Bb5+ {[%emt 0:00:19]} Bc6 {[%emt 0:02:19]} 16. Rac1 {[%emt 0:01:40]} a6 {[%emt 0:01:26]} 17. Bxc6+ {[%emt 0:00:18]} Qxc6 {[%emt 0:00:45]} 18. c4 {[%emt 0:01:38]} dxc4 {[%emt 0:06:01]} 19. Rxc4 {[%emt 0:02:08]} Be7 {[%emt 0:02:09]} 20. Ne5 {[%emt 0:05:31]} Qb5 {[%emt 0:03:04]} 21. Qf3 {[%emt 0:00:54]} O-O {[%emt 0:01:19]} 22. Nc6 {[%emt 0:00:33]} Rfe8 {[%emt 0:06:43]} 23. Nxe7+ {[%emt 0:01:40]} Rxe7 {[%emt 0:00:00]} 24. Qxa8+ {[%emt 0:00:37]} Re8 {[%emt 0:01:47]} 25. Rd8 {[%emt 0:59:25]} h6 {[%emt 0:05:45]} 26. Bxf6 {[%emt 0:00:30]} Kf8 {[%emt 0:52:13]} 27. Rxe8+ {[%emt 0:00:00]} Qxe8 {[%emt 0:00:00]} 28. Bxg7+ {[%emt 0:00:00]} 1-0

[Event "Vienna Championship-C 2022"]
[Site "Vienna"]
[Date "2022.09.20"]
[Round "4.1"]
[White "Brueggeboes, Anton"]
[Black "Lappe, Manfred"]
[Result "1-0"]
[ECO "C54"]
[WhiteElo "1506"]
[BlackElo "1692"]
[Annotator "NA COMBH"]
[PlyCount "35"]
[EventDate "2022.09.17"]
[EventType "swiss"]
[EventCountry "AUT"]
[SourceTitle "playchess.com"]
[Source "ChessBase"]
[SourceQuality "1"]
[TimeControl "5400+30"]

1. e4 {[%emt 0:00:02]} e5 {[%emt 0:00:56]} 2. Nf3 {[%emt 0:00:04]} Nc6 {[%emt 0:00:14]} 3. Bc4 {[%emt 0:00:07]} Bc5 {[%emt 0:00:41]} 4. c3 {[%emt 0:00:08]} Nf6 {[%emt 0:00:31]} 5. d4 {[%emt 0:00:15]} exd4 {[%emt 0:02:09]} 6. b4 {[%emt 0:00:10]} Bb6 {[%emt 0:00:36]} 7. e5 {[%emt 0:00:33]} Ng8 {[%emt 0:02:35]} 8. Qb3 {[%emt 0:02:32]} Qe7 {[%emt 0:01:19]} 9. O-O {[%emt 0:03:30]} Nxe5 {[%emt 0:02:42]} 10. Nxe5 {[%emt 0:00:44]} Qxe5 {[%emt 0:00:17]} 11. Bxf7+ {[%emt 0:00:24]} Kf8 {[%emt 0:00:10]} 12. Bd2 {[%emt 0:04:44]} Qf6 {[%emt 0:00:20]} 13. Bh5 {[%emt 0:01:22]} Ne7 {[%emt 0:00:21]} 14. Bg5 {[%emt 0:01:54]} Qe6 {[%emt 0:01:18]} 15. Qd1 {[%emt 0:01:05]} Ng6 {[%emt 0:01:00]} 16. Re1 {[%emt 0:01:43]} Qc6 {[%emt 0:02:41]} 17. b5 {[%emt 0:02:44]} Qxb5 {[%emt 0:01:08]} 18. Qf3+ {[%emt 0:00:32]} 1-0

[Event "Vienna Championship-C 2022"]
[Site "Vienna"]
[Date "2022.09.20"]
[Round "4.3"]
[White "Unger, Alexander"]
[Black "Gerold, Arnold"]
[Result "0-1"]
[ECO "B78"]
[WhiteElo "1456"]
[BlackElo "1708"]
[Annotator "NA COMBH"]
[PlyCount "48"]
[EventDate "2022.09.17"]
[EventType "swiss"]
[EventCountry "AUT"]
[SourceTitle "playchess.com"]
[Source "ChessBase"]
[SourceQuality "1"]
[TimeControl "5400+30"]

1. e4 {[%emt 1:31:00]} c5 {[%emt 1:31:00]} 2. Nf3 {[%emt 0:00:30]} d6 {[%emt 0:00:30]} 3. d4 {[%emt 0:00:30]} cxd4 {[%emt 0:00:30]} 4. Nxd4 {[%emt 0:00:30]} Nf6 {[%emt 0:00:30]} 5. Nc3 {[%emt 0:00:30]} g6 {[%emt 0:00:30]} 6. Be3 {[%emt 0:00:30]} Bg7 {[%emt 0:00:30]} 7. f3 {[%emt 0:00:30]} Nc6 {[%emt 0:00:30]} 8. Bc4 {[%emt 0:00:30]} Bd7 {[%emt 0:00:30]} 9. Qd2 {[%emt 0:00:30]} O-O {[%emt 0:00:30]} 10. O-O-O {[%emt 0:00:30]} Qa5 {[%emt 0:00:30]} 11. g4 {[%emt 0:00:30]} Rfc8 {[%emt 0:00:30]} 12. Bb3 {[%emt 0:00:30]} Ne5 {[%emt 0:00:30]} 13. Bh6 {[%emt 0:00:30]} Bxh6 {[%emt 0:00:30]} 14. Qxh6 {[%emt 0:00:30]} Rxc3 {[%emt 0:00:30]} 15. bxc3 {[%emt 0:00:30]} Qxc3 {[%emt 0:00:30]} 16. Kb1 {[%emt 0:00:30]} a5 {[%emt 0:00:30]} 17. g5 {[%emt 0:00:30]} Nh5 {[%emt 0:00:30]} 18. Nf5 {[%emt 0:00:30]} Bxf5 {[%emt 0:00:30]} 19. exf5 {[%emt 0:00:30]} a4 {[%emt 0:00:30]} 20. fxg6 {[%emt 0:00:30]} hxg6 {[%emt 0:00:30]} 21. Bd5 {[%emt 0:00:30]} Ra5 {[%emt 0:00:30]} 22. Bxf7+ {[%emt 0:00:30]} Kxf7 {[%emt 0:00:30]} 23. Qh7+ {[%emt 0:00:30]} Ng7 {[%emt 0:00:30]} 24. Rhf1 {[%emt 0:00:30]} Nc4 {[%emt 0:00:30]} 0-1

[Event "Vienna Championship-C 2022"]
[Site "Vienna"]
[Date "2022.09.20"]
[Round "4.5"]
[White "Nicolussi, Hieronymus"]
[Black "Bendl, Felix"]
[Result "1/2-1/2"]
[ECO "A45"]
[WhiteElo "1239"]
[BlackElo "1645"]
[Annotator "NA COMBH"]
[PlyCount "72"]
[EventDate "2022.09.17"]
[EventType "swiss"]
[EventCountry "AUT"]
[SourceTitle "playchess.com"]
[Source "ChessBase"]
[SourceQuality "1"]
[TimeControl "5400+30"]

1. d4 {[%emt 0:00:01]} Nf6 {[%emt 0:00:03]} 2. e3 {[%emt 0:00:06]} b6 {[%emt 0:00:01]} 3. Bd3 {[%emt 0:00:42]} Bb7 {[%emt 0:00:11]} 4. f3 {[%emt 0:00:12]} d5 {[%emt 0:01:35]} 5. Nd2 {[%emt 0:00:08]} e6 {[%emt 0:01:23]} 6. f4 {[%emt 1:32:21]} Nbd7 {[%emt 1:30:17]} 7. Ngf3 {[%emt 0:00:00]} c5 {[%emt 0:00:00]} 8. c3 {[%emt 0:00:00]} Rc8 {[%emt 0:00:00]} 9. O-O {[%emt 0:00:00]} Be7 {[%emt 0:00:00]} 10. Ne5 {[%emt 0:00:00]} O-O {[%emt 0:00:00]} 11. Rf3 {[%emt 0:00:00]} Ne4 {[%emt 0:00:00]} 12. Rh3 {[%emt 0:00:00]} f5 {[%emt 0:00:00]} 13. Ndf3 {[%emt 0:00:00]} Nxe5 {[%emt 0:00:00]} 14. Nxe5 {[%emt 0:00:00]} Rf6 {[%emt 0:00:00]} 15. Qh5 {[%emt 0:00:00]} h6 {[%emt 0:00:00]} 16. g4 {[%emt 0:00:00]} Qe8 {[%emt 0:00:00]} 17. Qxe8+ {[%emt 0:00:00]} Rxe8 {[%emt 0:00:00]} 18. Bxe4 {[%emt 0:00:00]} dxe4 {[%emt 0:00:00]} 19. g5 {[%emt 0:00:00]} Rff8 {[%emt 0:00:00]} 20. gxh6 {[%emt 0:00:00]} gxh6 {[%emt 0:00:00]} 21. Rxh6 {[%emt 0:00:00]} Rf6 {[%emt 0:00:00]} 22. Rxf6 {[%emt 0:00:00]} Bxf6 {[%emt 0:00:00]} 23. Bd2 {[%emt 0:00:00]} Bxe5 {[%emt 0:00:00]} 24. fxe5 {[%emt 0:00:00]} Rc8 {[%emt 0:00:00]} 25. Rc1 {[%emt 0:00:00]} cxd4 {[%emt 0:00:00]} 26. cxd4 {[%emt 0:00:00]} Rxc1+ {[%emt 0:00:00]} 27. Bxc1 {[%emt 0:00:00]} Kg7 {[%emt 0:00:00]} 28. Kg2 {[%emt 0:00:00]} Kg6 {[%emt 0:00:00]} 29. Kg3 {[%emt 0:00:00]} Kh5 {[%emt 0:00:00]} 30. Bd2 {[%emt 0:00:00]} a5 {[%emt 0:00:00]} 31. a4 {[%emt 0:00:00]} Bc6 {[%emt 0:00:00]} 32. b3 {[%emt 0:00:00]} Bd5 {[%emt 0:00:00]} 33. b4 {[%emt 0:00:00]} axb4 {[%emt 0:00:00]} 34. Bxb4 {[%emt 0:00:00]} Bb3 {[%emt 0:00:00]} 35. a5 {[%emt 0:00:00]} bxa5 {[%emt 0:00:00]} 36. Bxa5 {[%emt 0:00:00]} Bd5 {[%emt 0:00:00]} 1/2-1/2

[Event "Vienna Championship-C 2022"]
[Site "Vienna"]
[Date "2022.09.20"]
[Round "4.6"]
[White "Giefing, Josef"]
[Black "Eichhorn, Elisabeth"]
[Result "1/2-1/2"]
[ECO "D02"]
[WhiteElo "1771"]
[BlackElo "1306"]
[Annotator "NA COMBH"]
[PlyCount "33"]
[EventDate "2022.09.17"]
[EventType "swiss"]
[EventCountry "AUT"]
[SourceTitle "playchess.com"]
[Source "ChessBase"]
[SourceQuality "1"]
[TimeControl "5400+30"]

1. d4 {[%emt 0:00:03]} d5 {[%emt 0:00:09]} 2. Nf3 {[%emt 0:00:12]} c5 {[%emt 0:00:22]} 3. c3 {[%emt 0:00:37]} Bf5 {[%emt 0:01:13]} 4. Bf4 {[%emt 0:03:16]} e6 {[%emt 0:01:54]} 5. Nbd2 {[%emt 0:02:52]} Bd6 {[%emt 0:02:39]} 6. Bg3 {[%emt 0:00:51]} Nc6 {[%emt 0:00:31]} 7. e3 {[%emt 0:01:41]} Qe7 {[%emt 0:01:18]} 8. Bb5 {[%emt 0:03:49]} a6 {[%emt 0:04:52]} 9. Qa4 {[%emt 0:02:28]} Rc8 {[%emt 0:09:17]} 10. Bxc6+ {[%emt 0:00:39]} Rxc6 {[%emt 1:13:15]} 11. dxc5 {[%emt 0:03:43]} Bxg3 {[%emt 0:00:00]} 12. hxg3 {[%emt 1:16:19]} e5 {[%emt 0:01:00]} 13. b4 {[%emt 0:00:00]} Nf6 {[%emt 0:00:00]} 14. Rc1 {[%emt 0:00:00]} O-O {[%emt 0:00:00]} 15. Qb3 {[%emt 0:00:00]} Rd8 {[%emt 0:00:00]} 16. Rh4 {[%emt 0:00:00]} Ne4 {[%emt 0:00:00]} 17. Qb2 {[%emt 0:00:00]} 1/2-1/2

[Event "Vienna Championship-C 2022"]
[Site "Vienna"]
[Date "2022.09.20"]
[Round "4.8"]
[White "Zikic, Goran"]
[Black "Twyble, Michael S"]
[Result "0-1"]
[ECO "A03"]
[WhiteElo "1340"]
[BlackElo "2245"]
[Annotator "TA"]
[PlyCount "100"]
[EventDate "2022.09.17"]
[EventType "swiss"]
[EventCountry "AUT"]
[SourceTitle "playchess.com"]
[Source "ChessBase"]
[SourceQuality "1"]
[TimeControl "5400+30"]

{[%evp 9,100,12,18,-5,21,0,0,-19,-16,-18,9,-4,3,-31,-11,-38,-37,-83,-12,-22,-15,-23,-19,-22,-33,-22,10,-17,22,0,3,0,0,0,0,0,0,-29997,-1405,-1404,-1404,-1294,-1241,-1160,-658,-640,-650,-787,-776,-761,-758,-1088,-1084,-1103,-1089,-1172,-1184,-1271,-1203,-12835,-1333,-29976,-948,-934,-912,-1258,-1085,-1138,-1105,-1087,-1098,-1837,-1550,-2035,-3193,-5734,-2161,-5531,-2868,-2257,-2169,-2810,-4116,-29980,-29981,-29982,-29983,-29983,-29983,-29983,-29984,-29983,-29984]} 1. f4 {[%emt 0:00:30]} d5 {[%emt 0:00:30]} 2. Nf3 {[%emt 0:00:30]} Nc6 {[%emt 0:00:30]} 3. e3 {[%emt 0:00:30]} Bf5 {[%emt 0:00:30]} 4. Be2 {[%emt 0:00:30]} g6 {[%emt 0:00:30]} 5. O-O {[%emt 0:00:30]} Bg7 {[%emt 0:00:30]} 6. c3 {[%emt 0:00:30] A03: Bird's Opening with 1...d5.} Nf6 {[%emt 0:00:30]} 7. d4 {[%emt 0:00:30]} O-O {[%emt 0:00:30] [#]} 8. Bd3 $146 {[%emt 0:00:30] The position is equal.} ({Predecessor:} 8. Nbd2 a6 9. Ne5 Ne4 10. g4 Bc8 11. Kg2 f6 12. Nxc6 bxc6 13. Nxe4 dxe4 14. h3 {1-0 (60) Kock,R (1653)-Stave,K (1174) Hamburg 2015}) 8... Bxd3 {[%emt 0:00:30]} 9. Qxd3 {[%emt 0:00:30]} Na5 {[%emt 0:00:30]} 10. f5 {[%emt 0:00:30]} Qd7 {[%emt 0:00:30]} 11. Ne5 {[%emt 0:00:30]} Qd6 {[%emt 0:00:30]} 12. b4 {[%emt 0:00:30]} (12. b3 $5 {[%cal Rc1a3]}) 12... Nc6 {[%emt 0:00:30]} 13. Nf3 {[%emt 0:00:30]} (13. Nxc6 $1 $15 {was preferrable.} bxc6 14. g3) 13... Ne4 {[%emt 0:00:30] Black is more active.} (13... e5 $17 {Threatens to win with ...e4.} 14. b5 e4) 14. Ba3 {[%emt 0:00:30]} Qd7 {[%emt 0:00:30]} (14... gxf5 $2 15. b5 Qh6 16. bxc6 $18) 15. fxg6 {[%emt 0:00:30]} fxg6 {[%emt 0:00:30]} 16. Nbd2 {[%emt 0:00:30]} Nxd2 {[%emt 0:00:30]} 17. Nxd2 {[%emt 0:00:30][%cal Bf3d2,Bd2b3,Bb3c5][%mdl 32]} Rf6 {[%emt 0:00:30]} 18. Rxf6 {[%emt 0:00:30]} Bxf6 {[%emt 0:00:30][%cal Bg7f6,Bf6g5,Bg5e3][%mdl 32]} 19. Nb3 {[%emt 0:00:30]} Rf8 {[%emt 0:00:30]} 20. Nc5 {[%emt 0:00:30][%csl LRb7,LRd7]} Qc8 {[%emt 0:00:30]} 21. Qb5 {[%emt 0:00:30]} Bg5 {[%emt 0:00:30]} 22. Re1 {[%emt 0:00:30]} Qf5 {[%emt 0:00:30]} 23. Qf1 {[%emt 0:00:30][%mdl 8192] [#] Inhibits Qf2+. Black continues to play with concentration.} (23. Qe2 $11) 23... Qxf1+ {[%emt 0:00:30]} (23... Bxe3+ $142 $1 {[%mdl 512]} 24. Kh1 (24. Qf2 Qxf2+) 24... Qxf1+ 25. Rxf1 Rxf1#) 24. Rxf1 $19 {[%emt 0:00:30]} Bxe3+ {[%emt 0:00:30]} 25. Rf2 {[%emt 0:00:30]} Rxf2 {[%emt 0:00:30]} 26. Bc1 {[%emt 0:00:30]} Re2+ {[%emt 0:00:30]} 27. Kf1 {[%emt 0:00:30] [#]} Rxg2 {[%emt 0:00:30]} 28. Kxg2 {[%emt 0:00:30]} (28. Bxe3 Rxa2) 28... Bxc1 {[%emt 0:00:30]} 29. Nxb7 {[%emt 0:00:30]} Bb2 {[%emt 0:00:30]} 30. Nc5 {[%emt 0:00:30]} Bxc3 {[%emt 0:00:30]} 31. Ne6 {[%emt 0:00:30]} Nxb4 {[%emt 0:00:30]} 32. a3 {[%emt 0:00:30]} Nc2 {[%emt 0:00:30][%csl LRa3,LRd4]} 33. Nxc7 {[%emt 0:00:30]} Bxd4 {[%emt 0:00:30]} 34. Nxd5 {[%emt 0:00:30]} Kf7 {[%emt 0:00:30]} 35. a4 {[%emt 0:00:30]} e5 {[%emt 0:00:30]} (35... Ne3+ $142 36. Nxe3 Bxe3 37. Kh3 g5 38. Kg2 Bf4 39. h4 gxh4 40. Kf3 e5 41. Kg4 Bg3 42. Kf3 h5 43. Ke3 h3 44. Ke4 h2 45. Kd5 h1=Q+ 46. Kc4 Qb1 47. Kd5 Qb4 48. a5 Qb5+ 49. Ke4 Qb3 50. Kf5 Qe3 51. a6 Qf4#) 36. Kf3 {[%emt 0:00:30]} Ke6 {[%emt 0:00:30]} 37. Nc7+ {[%emt 0:00:30]} Kd7 {[%emt 0:00:30]} 38. Nd5 {[%emt 0:00:30]} Kd6 {[%emt 0:00:30]} 39. Nf6 {[%emt 0:00:30]} h6 {[%emt 0:00:30][%cal Bh7h6,Bh6h5][%mdl 32]} 40. Ne4+ {[%emt 0:00:30]} Kd5 {[%emt 0:00:30]} 41. Nf6+ {[%emt 0:00:30]} Kc4 {[%emt 0:00:30]} 42. Ng8 {[%emt 0:00:30]} h5 {[%emt 0:00:30]} 43. Ne7 {[%emt 0:00:30]} g5 {[%emt 0:00:30] ( -> ...Kd3)} 44. Ke4 {[%emt 0:00:30]} Kb4 {[%emt 0:00:30]} 45. Kf5 {[%emt 0:00:30]} Kxa4 {[%emt 0:00:30] And now ...Kb5 would win.} 46. Kxg5 {[%emt 0:00:30]} Kb5 {[%emt 0:00:30] Black mates.} 47. Nd5 {[%emt 0:00:30]} a5 {[%emt 0:00:30][%cal Ba7a5,Ba5a4][%mdl 32]} 48. Nc7+ {[%emt 0:00:30]} Kc6 {[%emt 0:00:30]} 49. Ne6 {[%emt 0:00:30]} a4 {[%emt 0:00:30]} 50. Nd8+ {[%emt 0:00:30]} Kd7 {[%emt 0:00:30] Weighted Error Value: White=0.97/Black=0.85} 0-1

[Event "Vienna Championship-C 2022"]
[Site "Vienna"]
[Date "2022.09.20"]
[Round "4.10"]
[White "Ganahl, Herbert"]
[Black "Ruck, Helmut"]
[Result "1/2-1/2"]
[ECO "A12"]
[WhiteElo "1488"]
[BlackElo "1662"]
[Annotator "NA RC COMBH"]
[PlyCount "105"]
[EventDate "2022.09.17"]
[EventType "swiss"]
[EventCountry "AUT"]
[SourceTitle "playchess.com"]
[Source "ChessBase"]
[SourceQuality "1"]
[TimeControl "5400+30"]

1. Nf3 {[%emt 0:00:10]} Nf6 {[%emt 0:00:06]} 2. g3 {[%emt 0:00:21]} d5 {[%emt 0:00:02]} 3. d4 {[%emt 0:00:09]} Bf5 {[%emt 0:00:28]} 4. Bg2 {[%emt 0:00:18]} h6 {[%emt 0:00:08]} 5. O-O {[%emt 0:00:26]} e6 {[%emt 0:00:01]} 6. Nbd2 {[%emt 0:01:36]} Be7 {[%emt 0:00:06]} 7. c4 {[%emt 0:01:24]} c6 {[%emt 0:00:17]} 8. b3 {[%emt 0:02:25]} Nbd7 {[%emt 0:00:04]} 9. Bb2 {[%emt 0:00:21]} O-O {[%emt 1:33:48]} 10. Re1 {[%emt 1:28:20]} Ne4 {[%emt 0:00:00]} 11. Nxe4 {[%emt 0:00:00]} Bxe4 {[%emt 0:00:00]} 12. Rc1 {[%emt 0:00:00]} Nf6 {[%emt 0:00:00]} 13. e3 {[%emt 0:00:00]} Rc8 {[%emt 0:00:00]} 14. Qe2 {[%emt 0:00:00]} a6 {[%emt 0:00:00]} 15. Nd2 {[%emt 0:00:00]} Bxg2 {[%emt 0:00:00]} 16. Kxg2 {[%emt 0:00:00]} Bb4 {[%emt 0:00:00]} 17. Bc3 {[%emt 0:00:00]} Qa5 {[%emt 0:00:00]} 18. Bxb4 {[%emt 0:00:00]} Qxb4 {[%emt 0:00:00]} 19. Rc2 {[%emt 0:00:00]} Rfe8 {[%emt 0:00:00]} 20. Rec1 {[%emt 0:00:00]} Qe7 {[%emt 0:00:00]} 21. Nf3 {[%emt 0:00:00]} Qd6 {[%emt 0:00:00]} 22. c5 {[%emt 0:00:00]} Qd8 {[%emt 0:00:00]} 23. b4 {[%emt 0:00:00]} Nd7 {[%emt 0:00:00]} 24. Ne5 {[%emt 0:00:00]} Nxe5 {[%emt 0:00:00]} 25. dxe5 {[%emt 0:00:00]} Qe7 {[%emt 0:00:00]} 26. a3 {[%emt 0:00:00]} Red8 {[%emt 0:00:00]} 27. Rd1 {[%emt 0:00:00]} Rd7 {[%emt 0:00:00]} 28. Rcd2 {[%emt 0:00:00]} Rcd8 {[%emt 0:00:00]} 29. h3 {[%emt 0:00:00]} f6 {[%emt 0:00:00]} 30. exf6 {[%emt 0:00:00]} Qxf6 {[%emt 0:00:00]} 31. f4 {[%emt 0:00:00]} e5 {[%emt 0:00:00]} 32. Qg4 {[%emt 0:00:00]} exf4 {[%emt 0:00:00]} 33. exf4 {[%emt 0:00:00]} Re7 {[%emt 0:00:00]} 34. Re2 {[%emt 0:00:00]} Rde8 {[%emt 0:00:00]} 35. Rde1 {[%emt 0:00:00]} Re4 {[%emt 0:00:00]} 36. Rxe4 {[%emt 0:00:00]} dxe4 {[%emt 0:00:00]} 37. Re3 {[%emt 0:00:00]} Qd4 {[%emt 0:00:00]} 38. Qe2 {[%emt 0:00:00]} Kf7 {[%emt 0:00:00]} 39. g4 {[%emt 0:00:00]} g6 {[%emt 0:00:00]} 40. h4 {[%emt 0:00:00]} Qd5 {[%emt 0:00:00]} 41. Kh3 {[%emt 0:00:00]} Qd4 {[%emt 0:00:00]} 42. Kg3 {[%emt 0:00:00]} Re6 {[%emt 0:00:00]} 43. Kh3 {[%emt 0:00:00]} Kf6 {[%emt 0:00:00]} 44. Kg3 {[%emt 0:00:00]} h5 {[%emt 0:00:00]} 45. Kh3 {[%emt 0:00:00]} hxg4+ {[%emt 0:01:18]} 46. Kxg4 {[%emt 0:00:00]} Qd5 {[%emt 0:00:19]} 47. Kg3 {[%emt 0:00:00]} Qf5 {[%emt 0:00:37]} 48. Qg4 {[%emt 0:03:42]} Re7 {[%emt 0:06:18]} 49. Qe2 {[%emt 0:01:32]} Qd5 {[%emt 0:06:11]} 50. Qb2+ {[%emt 0:00:36]} Kf7 {[%emt 0:01:13]} 51. Qe2 {[%emt 0:00:47]} Kf6 {[%emt 0:00:09]} 52. Qb2+ {[%emt 0:00:09]} Kf7 {[%emt 0:00:06]} 53. Qe2 {[%emt 0:00:08]} 1/2-1/2

[Event "Vienna Championship-C 2022"]
[Site "Vienna"]
[Date "2022.09.20"]
[Round "4.11"]
[White "Meixner, Peter"]
[Black "Aichinger, Johannes"]
[Result "1-0"]
[ECO "D53"]
[WhiteElo "1669"]
[BlackElo "1169"]
[Annotator "NA COMBH"]
[PlyCount "71"]
[EventDate "2022.09.17"]
[EventType "swiss"]
[EventCountry "AUT"]
[SourceTitle "playchess.com"]
[Source "ChessBase"]
[SourceQuality "1"]
[TimeControl "5400+30"]

1. d4 {[%emt 0:00:12]} Nf6 {[%emt 0:00:07]} 2. c4 {[%emt 0:00:45]} e6 {[%emt 0:00:11]} 3. Nc3 {[%emt 0:01:35]} d5 {[%emt 0:00:07]} 4. Bg5 {[%emt 0:00:45]} Be7 {[%emt 0:00:22]} 5. e3 {[%emt 0:03:57]} Ne4 {[%emt 0:00:16]} 6. Bxe7 {[%emt 0:00:58]} Nxc3 {[%emt 0:00:09]} 7. Bxd8 {[%emt 0:01:05]} Nxd1 {[%emt 0:00:06]} 8. Rxd1 {[%emt 0:02:28]} Kxd8 {[%emt 0:00:06]} 9. Nf3 {[%emt 0:02:59]} Nd7 {[%emt 0:00:37]} 10. Bd3 {[%emt 0:02:43]} Nf6 {[%emt 0:00:11]} 11. Ne5 {[%emt 0:02:38]} Ke7 {[%emt 0:00:20]} 12. O-O {[%emt 0:02:54]} Nd7 {[%emt 0:00:09]} 13. Nf3 {[%emt 0:01:54]} c6 {[%emt 0:00:11]} 14. c5 {[%emt 0:02:16]} b6 {[%emt 0:00:19]} 15. b4 {[%emt 0:14:44]} b5 {[%emt 0:00:17]} 16. Ra1 {[%emt 0:03:15]} f6 {[%emt 0:00:20]} 17. a4 {[%emt 0:01:03]} e5 {[%emt 0:00:30]} 18. Be2 {[%emt 0:02:10]} e4 {[%emt 0:00:17]} 19. Nd2 {[%emt 0:00:26]} a6 {[%emt 0:00:32]} 20. axb5 {[%emt 0:00:27]} cxb5 {[%emt 0:00:53]} 21. Bxb5 {[%emt 0:03:47]} Rb8 {[%emt 0:00:36]} 22. Bxd7 {[%emt 0:02:29]} Bxd7 {[%emt 0:00:23]} 23. Rfb1 {[%emt 0:02:52]} Bb5 {[%emt 0:00:16]} 24. Rb2 {[%emt 0:05:48]} Bd3 {[%emt 0:00:22]} 25. Nb1 {[%emt 0:03:16]} Rb7 {[%emt 0:00:22]} 26. Nc3 {[%emt 0:01:09]} Rhb8 {[%emt 0:00:18]} 27. Nxd5+ {[%emt 0:00:28]} Ke6 {[%emt 0:00:32]} 28. Nb6 {[%emt 0:02:14]} Bb5 {[%emt 0:00:17]} 29. f4 {[%emt 0:04:08]} f5 {[%emt 0:00:20]} 30. d5+ {[%emt 0:00:54]} Ke7 {[%emt 0:00:23]} 31. Kf2 {[%emt 0:01:13]} Rxb6 {[%emt 0:00:15]} 32. cxb6 {[%emt 0:00:09]} Rxb6 {[%emt 0:00:09]} 33. Rc1 {[%emt 0:03:18]} Kd7 {[%emt 0:00:34]} 34. Rbc2 {[%emt 0:01:06]} Rb7 {[%emt 0:00:22]} 35. Rc6 {[%emt 0:02:23]} Bxc6 {[%emt 0:00:10]} 36. dxc6+ {[%emt 0:00:15]} 1-0

[Event "Vienna Championship-C 2022"]
[Site "Vienna"]
[Date "2022.09.20"]
[Round "4.12"]
[White "Gockner, Hans"]
[Black "Johnson, Roland E S"]
[Result "0-1"]
[ECO "C42"]
[WhiteElo "1592"]
[BlackElo "1691"]
[Annotator "NA COMBH"]
[PlyCount "90"]
[EventDate "2022.09.17"]
[EventType "swiss"]
[EventCountry "AUT"]
[SourceTitle "playchess.com"]
[Source "ChessBase"]
[SourceQuality "1"]
[TimeControl "5400+30"]

1. e4 {[%emt 0:00:09]} e5 {[%emt 0:00:06]} 2. Nf3 {[%emt 0:00:30]} Nf6 {[%emt 0:00:15]} 3. Nxe5 {[%emt 0:00:26]} Qe7 {[%emt 0:00:08]} 4. d4 {[%emt 0:02:21]} d6 {[%emt 0:00:17]} 5. Nd3 {[%emt 0:01:20]} Qxe4+ {[%emt 0:00:18]} 6. Be3 {[%emt 0:01:24]} Nd5 {[%emt 0:01:48]} 7. Nd2 {[%emt 0:02:17]} Nxe3 {[%emt 0:00:35]} 8. fxe3 {[%emt 0:00:43]} Qxe3+ {[%emt 0:00:16]} 9. Be2 {[%emt 0:00:36]} Bg4 {[%emt 0:01:18]} 10. Nf2 {[%emt 0:03:51]} Bxe2 {[%emt 0:00:33]} 11. Qxe2 {[%emt 0:00:11]} Qxe2+ {[%emt 0:00:08]} 12. Kxe2 {[%emt 0:00:10]} Be7 {[%emt 0:00:15]} 13. Rhe1 {[%emt 0:03:21]} O-O {[%emt 0:02:21]} 14. Kf1 {[%emt 0:00:18]} Bf6 {[%emt 0:00:11]} 15. c3 {[%emt 0:03:34]} Nc6 {[%emt 0:00:23]} 16. Nde4 {[%emt 0:02:35]} Be7 {[%emt 0:01:27]} 17. Ng3 {[%emt 0:00:47]} Bh4 {[%emt 0:00:29]} 18. Nf5 {[%emt 0:05:38]} Bxf2 {[%emt 0:00:12]} 19. Kxf2 {[%emt 0:00:08]} Rfe8 {[%emt 0:00:19]} 20. Rf1 {[%emt 0:05:48]} Re4 {[%emt 0:02:24]} 21. Kg1 {[%emt 0:00:59]} Re2 {[%emt 0:00:30]} 22. Rab1 {[%emt 0:04:07]} g6 {[%emt 0:00:36]} 23. Nh6+ {[%emt 0:00:25]} Kg7 {[%emt 0:00:18]} 24. Nxf7 {[%emt 0:05:01]} Rf8 {[%emt 0:00:46]} 25. Ng5 {[%emt 0:00:15]} h6 {[%emt 0:01:07]} 26. Nf3 {[%emt 0:04:13]} Na5 {[%emt 0:01:49]} 27. b4 {[%emt 0:06:13]} Nc4 {[%emt 0:00:35]} 28. Rfe1 {[%emt 0:05:04]} Rxa2 {[%emt 0:00:32]} 29. d5 {[%emt 0:02:00]} Nd2 {[%emt 0:01:15]} 30. Re7+ {[%emt 0:08:35]} Rf7 {[%emt 0:00:10]} 31. Rxf7+ {[%emt 0:03:22]} Kxf7 {[%emt 0:00:05]} 32. Nxd2 {[%emt 0:02:17]} Rxd2 {[%emt 0:00:11]} 33. Ra1 {[%emt 0:01:08]} a6 {[%emt 0:00:13]} 34. Rf1+ {[%emt 0:01:12]} Ke7 {[%emt 0:00:29]} 35. Re1+ {[%emt 0:00:24]} Kd8 {[%emt 0:02:26]} 36. c4 {[%emt 0:02:47]} Rc2 {[%emt 0:01:46]} 37. Re6 {[%emt 0:02:32]} Rxc4 {[%emt 0:00:19]} 38. Rxg6 {[%emt 0:00:12]} Rxb4 {[%emt 0:00:09]} 39. Rg8+ {[%emt 0:00:31]} Kd7 {[%emt 0:00:09]} 40. Rg7+ {[%emt 0:00:26]} Ke8 {[%emt 0:00:32]} 41. Rxc7 {[%emt 0:01:02]} a5 {[%emt 0:00:10]} 42. Rh7 {[%emt 0:01:31]} a4 {[%emt 0:00:11]} 43. Rxh6 {[%emt 0:01:56]} a3 {[%emt 0:00:16]} 44. Re6+ {[%emt 0:00:32]} Kd7 {[%emt 0:00:10]} 45. Re2 {[%emt 0:01:08]} Rb2 {[%emt 0:00:11]} 0-1